fUST/lending_fUST_20260203
["ID","MTS","AMOUNT","RATE_DAILY","PERIOD"]
[404405855,1770111649292,-745.04,0.00016487,2]
[404405856,1770111741625,-562.36742215,0.00016322,2]
[404405857,1770111822873,-560.66,0.00016322,2]
[404405858,1770111846990,2852.963307,0.00015998,2]
[404405859,1770111906542,-99.10949032,0.00016159,2]
[404405860,1770111906555,-445.80844151,0.00016159,2]
[404405861,1770111906565,-99.10949032,0.00016405,2]
[404405862,1770111950264,500.0,0.00029574,120]
[404405863,1770111994073,-50.89050968,0.00016405,2]
[404405864,1770111994103,-300.0,0.00017337,2]
[404405865,1770111994137,-239.97898064,0.00017338,2]
[404405866,1770111994155,-50.89050968,0.00017338,2]
[404405867,1770111994167,-9.13050968,0.00017338,2]
[404405868,1770111994177,-290.86949032,0.00017338,2]
[404405869,1770111994188,-9.13050968,0.00017338,2]
[404405870,1770111994198,-290.86949032,0.00017338,2]
[404405871,1770112093891,-525.60938824,0.00017238,2]
[404405872,1770112180840,-150.0,0.00017288,2]
[404405873,1770112180873,-9.13050968,0.00017338,2]
[404405874,1770112180904,-272.49707765,0.00017338,2]
[404405875,1770112180919,-27.50292235,0.00017338,2]
[404405876,1770112180929,-122.49707765,0.00017338,2]
[404405877,1770112180942,-9.13050968,0.00017338,2]
[404405878,1770112180955,-168.37241267,0.00017338,2]
[404405879,1770112180966,-131.62758733,0.00017338,2]
[404405979,1770112238070,-168.37241267,0.00017338,2]
[404405981,1770112238080,-300.0,0.00017338,2]
[404405983,1770112238089,-300.0,0.00017338,2]
[404405985,1770112238099,-97.27722457,0.00017338,2]
[404405989,1770112238123,-202.72277543,0.00017338,2]
[404405991,1770112238132,-300.0,0.00017338,2]
[404405993,1770112238141,-300.0,0.00017338,2]
[404405995,1770112238150,-300.0,0.00017338,2]
[404405997,1770112238160,-300.0,0.00017338,2]
[404405999,1770112238169,-300.0,0.00017338,2]
[404406001,1770112238179,-300.0,0.00017338,2]
[404406003,1770112238188,-1000.0,0.00018,2]
[404406005,1770112238198,-178.0655353,0.00019272,2]
[404406007,1770112238207,-150.50419458,0.00019272,2]
[404406009,1770112238216,-90.99580678,0.00019284,2]
[404406011,1770112238228,-484.46054612,0.00019284,2]
[404406013,1770112238237,-2113.8233713,0.00019284,2]
[404406015,1770112238246,-260.4681711,0.00019284,2]
[404406017,1770112238258,-177.0,0.00019288,2]
[404406019,1770112238267,-300.0,0.00020579,2]
[404406021,1770112238276,-933.60003309,0.00021077,2]
[404406158,1770112240338,-5434.645629,0.00021077,2]
[404406160,1770112240348,-1500.0,0.00021077,2]
[404406162,1770112240357,-204.0,0.00021288,2]
[404406164,1770112240366,-2113.8233713,0.00021621,2]
[404406166,1770112240375,-575.4563529,0.00021752,2]
[404406168,1770112240385,-260.4681711,0.00022103,2]
[404406170,1770112240394,-500.0,0.00022393,2]
[404406172,1770112240405,-178.0655353,0.00022393,2]
[404406174,1770112240414,-231.0,0.00023288,2]
[404406176,1770112240423,-500.0,0.00023852,2]
[404406178,1770112240432,-500.0,0.00023852,2]
[404406180,1770112240441,-500.0,0.00023852,2]
[404406182,1770112240453,-500.0,0.00023852,2]
[404406184,1770112240462,-500.0,0.00023852,2]
[404406186,1770112240472,-500.0,0.00023852,2]
[404406188,1770112240482,-500.0,0.00023852,2]
[404406190,1770112240491,-500.0,0.00023852,2]
[404406192,1770112240500,-502.43943597,0.00023852,2]
[404406194,1770112240509,-500.0,0.00023852,2]
[404406196,1770112240519,-500.0,0.00023852,2]
[404406198,1770112240528,-218.19072137,0.00023852,2]
[404406201,1770112240537,-500.0,0.00023852,2]
[404406203,1770112240547,-500.0,0.00023852,2]
[404406205,1770112240556,-500.0,0.00023852,2]
[404406207,1770112240565,-500.0,0.00023852,2]
[404406208,1770112240574,-433.83624711,0.00023852,2]
[404406210,1770112240583,-184.46770552,0.00023852,2]
[404406222,1770112240678,-525.60938824,0.00023852,2]
[404406224,1770112240688,-2113.8233713,0.00023958,2]
[404406226,1770112240697,-575.4563529,0.00024219,2]
[404406228,1770112240706,-260.4681711,0.00024922,2]
[404406230,1770112240716,-1057.444389,0.00025259,2]
[404406232,1770112240726,-258.0,0.00025288,2]
[404406234,1770112240736,-297.709,0.00025291,9]
[404406236,1770112240745,-178.0655353,0.00025515,2]
[404406238,1770112240755,-2113.8233713,0.00026295,2]
[404406240,1770112240764,-575.4563529,0.00026687,2]
[404406242,1770112240774,-161.0,0.00026904,22]
[404406244,1770112240783,-285.0,0.00027288,2]
[404406246,1770112240792,-260.4681711,0.00027741,2]
[404406248,1770112240801,-325.18691219,0.00029171,2]
[404406250,1770112240811,-312.0,0.00029288,2]
[404406252,1770112240820,-6906.4845593,0.00029575,2]
[404406254,1770112240830,-185.754853,0.00029759,60]
[404406256,1770112240839,-492.8522721,0.00030091,2]
[404406258,1770112240849,-600.0,0.00030165,30]
[404406260,1770112240858,-150.50419458,0.00030198,2]
[404406262,1770112240867,-2198.3918831,0.00030246,2]
[404406264,1770112240877,-199.96164489,0.00030755,5]
[404406266,1770112240886,-2154.0,0.00031168,2]
[404406268,1770112240896,-631.0,0.00031168,2]
[404406270,1770112240906,-718.0,0.00031168,2]
[404406272,1770112240915,-1371.0,0.00031168,2]
[404406274,1770112240925,-179.0,0.00031168,2]
[404406276,1770112240934,-339.0,0.00031288,2]
[404406278,1770112240943,-740.91124423,0.00031405,2]
[404406280,1770112240952,-1041.66666667,0.00031406,2]
[404406282,1770112240962,-220.02832352,0.00031491,2]
[404406284,1770112240971,-332.95464224,0.00031491,2]
[404406287,1770112240981,-191.9214412,0.00031492,2]
[404406289,1770112240991,-151.90851401,0.00031492,2]
[404406291,1770112241001,-273.43532522,0.00031492,2]
[404406293,1770112241011,-345.11313556,0.00031492,2]
[404406294,1770112241020,-500.0,0.00031999,120]
[404406297,1770112241030,-3518.1246,0.00032,120]
[404406299,1770112241039,-296.2962963,0.00032009,2]
[404406301,1770112241048,-181.22680501,0.00032797,2]
[404406303,1770112241057,-500.0,0.00032887,120]
[404406305,1770112241066,-9736.14947162,0.00032888,2]
[404406307,1770112241079,-661.98869106,0.00032888,2]
[404406781,1770112246324,-4794.6394168,0.00024119,2]
[404406782,1770112246334,-12137.48153872,0.00032888,2]
[404406783,1770112246343,-500.0,0.00032897,120]
[404406784,1770112246353,-500.0,0.00032897,120]
[404406785,1770112246362,-500.0,0.00032897,120]
[404406786,1770112246371,-500.0,0.00032897,120]
[404406787,1770112246380,-500.0,0.00032897,120]
[404406788,1770112246390,-500.0,0.00032897,120]
[404406789,1770112246400,-5855.49620377,0.00032898,2]
[404406790,1770112246415,-1351.16102486,0.00032898,2]
[404406796,1770112264687,483.02742215,0.00013273,2]
[404406797,1770112277493,500.0,0.00013273,2]
[404406798,1770112310369,-9.47264051,0.00023851,2]
[404406799,1770112325929,500.0,0.00013273,2]
[404406800,1770112330234,500.0,0.00013273,2]
[404406801,1770112333055,500.0,0.00013699,2]
[404406802,1770112447006,-616.77889385,0.00023026,2]
[404406804,1770112521929,2000.0,0.00029492,120]
[404406805,1770112526303,2000.0,0.00029492,120]
[404406806,1770112529352,511.32,0.00029492,120]
[404406807,1770112805022,497.8433772,0.00013273,2]
[404406808,1770112867650,500.06062089,0.00013273,2]
[404406809,1770113186912,-28.1238201,0.00024226,2]
[404406840,1770113432291,-150.0,0.00024296,2]
[404406841,1770113432300,-300.0,0.00024326,2]
[404406842,1770113432309,-0.47940424,0.00024327,10]
[404406852,1770113438299,-299.52059576,0.00024327,10]
[404406853,1770113438308,-300.0,0.00024327,10]
[404406854,1770113438318,-300.0,0.00024327,10]
[404406855,1770113438327,-300.0,0.00024327,10]
[404406856,1770113438336,-300.0,0.00024327,10]
[404406857,1770113438346,-300.0,0.00024327,10]
[404406858,1770113438355,-300.0,0.00024327,10]
[404406859,1770113438364,-300.0,0.00024327,10]
[404406860,1770113438373,-300.0,0.00024327,10]
[404406861,1770113438382,-300.0,0.00024327,10]
[404406862,1770113438390,-300.0,0.00024327,10]
[404406863,1770113438399,-300.0,0.00024327,10]
[404406864,1770113438408,-300.0,0.00024327,10]
[404406865,1770113438416,-300.0,0.00024327,10]
[404406866,1770113438425,-300.0,0.00024327,10]
[404406867,1770113438434,-600.0,0.00024327,10]
[404406869,1770113438443,-150.50864088,0.00024327,2]
[404406870,1770113438452,-501.18204101,0.00024327,2]
[404406871,1770113438462,-278.9551907,0.00025063,2]
[404406872,1770113438471,-600.09822039,0.00026,2]
[404406873,1770113438482,-150.40440885,0.00026,2]
[404406874,1770113438492,-177.0,0.00026296,2]
[404406875,1770113438501,-420.0,0.00026371,2]
[404406877,1770113438511,-720.0,0.0002676,30]
[404406878,1770113438520,-1000.0,0.00027,2]
[404406880,1770113438529,-500.0,0.00027888,2]
[404406882,1770113438539,-190.91008015,0.00027888,2]
[404406884,1770113438548,-213.02063015,0.00027888,2]
[404406886,1770113438558,-500.0,0.00027888,2]
[404406888,1770113438567,-500.0,0.00027888,2]
[404406890,1770113438576,-566.71454371,0.00027888,2]
[404406892,1770113438585,-500.0,0.00027888,2]
[404406895,1770113438596,-500.0,0.00027888,2]
[404406896,1770113438605,-593.26441915,0.00027888,2]
[404406898,1770113438614,-500.0,0.00027888,2]
[404406901,1770113438623,-500.0,0.00027888,2]
[404406903,1770113438632,-500.0,0.00027888,2]
[404406905,1770113438642,-20089.2402721,0.00027889,2]
[404406907,1770113438651,-1000.0,0.00028,2]
[404406909,1770113438661,-4662.2487632,0.00028121,2]
[404406911,1770113438670,-185.754853,0.00028221,60]
[404406912,1770113438679,-204.0,0.00028296,2]
[404406914,1770113438688,-180.0,0.00028589,2]
[404406915,1770113438698,-864.0,0.00029436,30]
[404406917,1770113438707,-500.0,0.00029647,2]
[404406919,1770113438716,-916.64888078,0.00029647,2]
[404406921,1770113438727,-1237.35111922,0.00029647,2]
[404406923,1770113438736,-631.0,0.00029647,2]
[404406925,1770113438745,-1371.0,0.00029647,2]
[404406927,1770113438754,-718.0,0.00029647,2]
[404406929,1770113438766,-179.0,0.00029647,2]
[404406931,1770113438779,-419.0,0.00029647,2]
[404406934,1770113438796,-419.0,0.00029647,2]
[404406936,1770113438808,-231.0,0.00030296,2]
[404406939,1770113438819,-162.53937909,0.00030347,5]
[404406940,1770113438828,-649.50735883,0.00030347,5]
[404406942,1770113438838,-175.38333525,0.00030347,5]
[404406944,1770113438849,-3605.9955043,0.00030982,2]
[404406946,1770113438859,-740.91124423,0.00031245,2]
[404406948,1770113438868,-1041.66666667,0.00031374,2]
[404406950,1770113438877,-206.71358,0.00031382,2]
[404406952,1770113438887,-238.167,0.00031462,29]
[404406954,1770113438897,-1110.20200893,0.00031492,2]
[404406956,1770113438906,-373.06265006,0.00031492,2]
[404406958,1770113438915,-150.958,0.0003154,2]
[404406960,1770113438925,-150.342,0.0003154,2]
[404406962,1770113438935,-221.01844942,0.00032,3]
[404406964,1770113438945,-197.5308642,0.00032009,2]
[404406966,1770113438955,-154.01982647,0.00032219,2]
[404406968,1770113438966,-233.06824957,0.00032219,2]
[404406970,1770113438976,-1613.3381,0.0003222,30]
[404406972,1770113438985,-258.0,0.00032296,2]
[404406974,1770113438995,-1000.0,0.00032379,30]
[404406976,1770113439005,-2154.0,0.00032647,2]
[404406978,1770113439014,-631.0,0.00032647,2]
[404406980,1770113439024,-1371.0,0.00032647,2]
[404406982,1770113439035,-718.0,0.00032647,2]
[404406984,1770113439044,-179.0,0.00032647,2]
[404406986,1770113439054,-419.0,0.00032647,2]
[404406988,1770113439063,-419.0,0.00032647,2]
[404406990,1770113439073,-500.0,0.00032798,120]
[404406992,1770113439083,-249.87,0.00032888,10]
[404406994,1770113439093,-12797.0234466,0.00032888,2]
[404406996,1770113439103,-500.0,0.00032897,120]
[404406998,1770113439113,-500.0,0.00032897,120]
[404407000,1770113439123,-451.39,0.00032897,120]
[404407002,1770113439133,-119369.42312007,0.00032898,2]
[404407004,1770113439143,-207.07,0.000329,30]
[404407006,1770113439153,-6398.51172332,0.0003297,2]
[404407009,1770113439162,-44789.5820632,0.0003299,2]
[404407011,1770113439172,-341.16,0.0003299,3]
[404407013,1770113439181,-682.37,0.0003299,3]
[404407014,1770113439191,-290689.43319799,0.00033,120]
[404407016,1770113439200,-871.57,0.00033,14]
[404407018,1770113439209,-1041.66666667,0.00033,120]
[404407020,1770113439219,-5778.16479113,0.00034,120]
[404407022,1770113439228,-285.0,0.00034296,120]
[404407025,1770113439242,-150.0,0.0003454,2]
[404407027,1770113439252,-150.0,0.0003454,2]
[404407029,1770113439261,-206.71358,0.00034684,2]
[404407031,1770113439272,-198.12741,0.00035616,31]
[404407033,1770113439281,-198.12741,0.00035616,31]
[404407035,1770113439290,-198.12741,0.00035616,31]
[404407037,1770113439300,-198.12741,0.00035616,31]
[404407039,1770113439310,-198.12741,0.00035616,31]
[404407041,1770113439319,-198.12741,0.00035616,31]
[404407043,1770113439329,-198.12741,0.00035616,31]
[404407045,1770113439338,-198.12741,0.00035616,31]
[404407047,1770113439348,-1000.0,0.00035617,30]
[404407060,1770113439455,-244.0,0.00035617,30]
[404407062,1770113439467,-2154.0,0.00035647,2]
[404407064,1770113439476,-631.0,0.00035647,2]
[404407066,1770113439485,-718.0,0.00035647,2]
[404407068,1770113439494,-179.0,0.00035647,2]
[404407070,1770113439503,-419.0,0.00035647,2]
[404407073,1770113439515,-419.0,0.00035647,2]
[404407075,1770113439524,-179.5319447,0.00035788,2]
[404407077,1770113439533,-312.0,0.00036296,120]
[404407079,1770113439542,-214.100512,0.00036986,31]
[404407080,1770113439551,-1007.0,0.00037,20]
[404407082,1770113439560,-152.66,0.00037235,60]
[404407084,1770113439569,-165.95,0.00037235,60]
[404407086,1770113439578,-165.95,0.00037235,60]
[404407088,1770113439587,-153.03,0.00037236,60]
[404407090,1770113439596,-152.66,0.00037335,60]
[404407092,1770113439605,-165.95,0.00037335,60]
[404407094,1770113439614,-165.95,0.00037335,60]
[404407096,1770113439623,-153.03,0.00037336,60]
[404407098,1770113439632,-152.66,0.00037435,60]
[404407100,1770113439641,-165.95,0.00037435,60]
[404407102,1770113439650,-153.03,0.00037436,60]
[404407104,1770113439659,-152.66,0.00037535,60]
[404407106,1770113439668,-165.95,0.00037535,60]
[404407108,1770113439677,-153.03742215,0.00037536,60]
[404407110,1770113439686,-152.68807281,0.00037635,60]
[404407111,1770113439695,-165.95,0.00037635,60]
[404407113,1770113439704,-165.95,0.00037735,60]
[404407115,1770113439713,-165.95,0.00037835,60]
[404407117,1770113439723,-1057.444389,0.00037888,2]
[404407119,1770113439732,-198.12741,0.00037888,31]
[404407121,1770113439741,-198.12741,0.00037888,31]
[404407123,1770113439750,-198.12741,0.00037888,31]
[404407125,1770113439759,-198.12741,0.00037888,31]
[404407127,1770113439769,-166.00257785,0.00037935,60]
[404407129,1770113439780,-206.71358,0.00037987,2]
[404407131,1770113439789,-339.0,0.00038296,120]
[404407133,1770113439799,-2154.0,0.00038647,2]
[404407135,1770113439809,-718.0,0.00038647,2]
[404407137,1770113439818,-179.0,0.00038647,2]
[404407139,1770113439827,-419.0,0.00038647,2]
[404407141,1770113439837,-306.53,0.00038647,2]
[404407143,1770113439847,-209.47509151,0.00038875,11]
[404407145,1770113439856,-871.57,0.000389,14]
[404407147,1770113439866,-1000.0,0.00039,20]
[404407149,1770113439875,-207.07,0.00039,30]
[404407151,1770113439884,-1000.0,0.00039179,60]
[404407153,1770113439893,-492.0,0.00039179,60]
[404407155,1770113439902,-198.12741,0.00039973,120]
[404407157,1770113439911,-198.12741,0.00039973,120]
[404407159,1770113439920,-198.12741,0.00039973,120]
[404407161,1770113439929,-198.12741,0.00039973,120]
[404407163,1770113439938,-198.12741,0.00039973,120]
[404407165,1770113439948,-198.12741,0.00039973,120]
[404407167,1770113439957,-198.12741,0.00039973,120]
[404407169,1770113439965,-198.12741,0.00039973,120]
[404407171,1770113439974,-386647.85221736,0.00039975,120]
[404407173,1770113439983,-1137.0,0.00039975,30]
[404407174,1770113439994,-8048.0,0.00039975,30]
[404407176,1770113440003,-7072.38291298,0.00039975,120]
[404407178,1770113440012,-177.32920121,0.00039975,120]
[404407180,1770113440021,-177.32920121,0.00039975,120]
[404407182,1770113440030,-177.3292012,0.00039975,120]
[404407184,1770113440039,-6643.83788992,0.00039975,120]
[404407186,1770113440048,-5041.18095813,0.00039975,120]
[404407188,1770113440057,-266.71320834,0.00039975,120]
[404407190,1770113440066,-154.668248,0.00039975,10]
[404407192,1770113440075,-160.183731,0.00039975,120]
[404407194,1770113440084,-698.4921935,0.00039975,7]
[404407196,1770113440093,-160.0,0.0004,120]
[404407198,1770113440101,-197.5308642,0.00040006,7]
[404407200,1770113440110,-291.86327931,0.00040296,120]
[404407202,1770113440119,-322.12,0.000404,60]
[404407204,1770113440128,-322.12,0.000408,60]
[404407206,1770113440138,-241.50171353,0.00041095,120]
[404407208,1770113440147,-2154.0,0.00041647,2]
[404407210,1770113440156,-374.132,0.00041647,2]
[404407212,1770113440165,-157.077,0.00041647,2]
[404407214,1770113440174,-419.0,0.00041647,2]
[404407216,1770113440182,-224.11,0.000428,90]
[404407218,1770113440191,-1800.92,0.000428,120]
[404407220,1770113440200,-6398.51172332,0.00043087,3]
[404407222,1770113440209,-1000.0,0.00043097,60]
[404407224,1770113440218,-791.0,0.00043097,60]
[404407226,1770113440227,-252.09,0.000432,90]
[404407228,1770113440235,-1800.92,0.00043308,120]
[404407230,1770113440245,-1800.92,0.00043816,120]
[404407231,1770113440253,-1800.92,0.00044324,120]
[404407233,1770113440262,-2154.0,0.00044647,2]
[404407235,1770113440272,-419.0,0.00044647,2]
[404407237,1770113440280,-871.57,0.000448,14]
[404407239,1770113440290,-1800.92,0.00044832,120]
[404407241,1770113440299,-57586.6055099,0.0004499,3]
[404407243,1770113440308,-11000.0,0.00045,30]
[404407245,1770113440317,-439865.1650159,0.00045,2]
[404407247,1770113440326,-740.91124423,0.00045,3]
[404407249,1770113440335,-1800.92,0.0004534,120]
[404407251,1770113440345,-150.50864088,0.00045468,2]
[404407253,1770113440354,-1800.92,0.00045848,120]
[404407255,1770113440364,-9055.4573075,0.00046,120]
[404407257,1770113440372,-207.07,0.00046,30]
[404407259,1770113440381,-1205.144541,0.00046056,60]
[404407261,1770113440391,-1800.92,0.00046356,120]
[404407263,1770113440401,-740.91124423,0.000464,3]
[404407265,1770113440409,-1800.92,0.00046864,120]
[404407267,1770113440421,-1800.92,0.00047372,120]
[404407269,1770113440438,-1000.0,0.00047406,120]
[404407271,1770113440447,-1000.0,0.00047406,120]
[404407273,1770113440456,-751.5,0.00047409,60]
[404407275,1770113440465,-752.5,0.00047409,60]
[404407277,1770113440474,-2154.0,0.00047647,2]
[404407279,1770113440484,-268.587,0.00047647,2]
[404407281,1770113440493,-1800.92,0.0004788,120]
[404407283,1770113440502,-396030.0,0.00048,30]
[404407285,1770113440511,-14706.19441032,0.00048287,2]
[404407287,1770113440520,-1800.92,0.00048387,120]
[404407289,1770113440529,-150.0,0.00048792,60]
[404407291,1770113440538,-158.673428,0.00048792,60]
[404407292,1770113440547,-167.346856,0.00048792,60]
[404407294,1770113440556,-176.020284,0.00048792,60]
[404407296,1770113440565,-184.693712,0.00048792,60]
[404407298,1770113440575,-193.36714,0.00048792,60]
[404407300,1770113440583,-202.040569,0.00048792,60]
[404407302,1770113440593,-210.713997,0.00048792,60]
[404407304,1770113440603,-219.387425,0.00048792,60]
[404407306,1770113440612,-228.060853,0.00048792,60]
[404407308,1770113440621,-150.0,0.00048792,60]
[404407310,1770113440630,-278.374186,0.00048792,60]
[404407312,1770113440639,-406.748373,0.00048792,60]
[404407314,1770113440648,-535.12256,0.00048792,60]
[404407316,1770113440657,-663.496746,0.00048792,60]
[404407318,1770113440666,-791.870933,0.00048792,60]
[404407320,1770113440675,-920.24512,0.00048792,60]
[404407322,1770113440683,-1048.619306,0.00048792,60]
[404407324,1770113440692,-1176.993493,0.00048792,60]
[404407326,1770113440701,-1305.36768,0.00048792,60]
[404407328,1770113440710,-1800.92,0.00048895,120]
[404407329,1770113440720,-300.0,0.00049205,120]
[404407331,1770113440729,-1800.92,0.00049403,120]
[404407333,1770113440738,-1800.92,0.00049911,120]
[404407335,1770113440747,-174.07939375,0.00049999,31]
[404407337,1770113440757,-399.25160213,0.00049999,7]
[404407339,1770113440768,-168.14224605,0.00049999,7]
[404407341,1770113440779,-543.82591566,0.00049999,120]
[404407343,1770113440788,-225.14163773,0.0005,20]
[404407345,1770113440798,-332.4563198,0.0005,120]
[404407347,1770113440807,-539.32530269,0.0005,10]
[404407349,1770113440816,-625.85948436,0.0005,120]
[404407351,1770113440825,-199.0,0.0005,7]
[404407353,1770113440834,-184.97288394,0.0005,120]
[404407355,1770113440845,-978.62058295,0.0005,120]
[404407357,1770113440854,-189.67480457,0.0005,120]
[404407359,1770113440863,-341.68546137,0.0005,120]
[404407361,1770113440872,-495.18688155,0.0005,30]
[404407363,1770113440881,-100193.13760347,0.0005,120]
[404407365,1770113440890,-8910.4946301,0.0005,120]
[404407367,1770113440899,-436.57660389,0.0005,30]
[404407369,1770113440908,-152.0,0.0005,120]
[404407371,1770113440918,-8705.96,0.0005,70]
[404407373,1770113440926,-197.5308642,0.0005,120]
[404407375,1770113440936,-207.06,0.000501,30]
[404407377,1770113440945,-480.5,0.00050379,120]
[404407379,1770113440954,-1800.92,0.00050419,120]
[404407381,1770113440962,-591.716,0.00050647,120]
[404407383,1770113440971,-1800.92,0.00050927,120]
[404407385,1770113440983,-3622.49064418,0.00051,120]
[404407387,1770113440992,-238.168,0.00051096,92]
[404407389,1770113441001,-207.07,0.000514,30]
[404407391,1770113441010,-1800.92,0.00051435,120]
[404407393,1770113441020,-50000.0,0.000519,120]
[404407395,1770113441029,-1800.92,0.00051943,120]
[404407397,1770113441038,-300.0,0.00051945,120]
[404407399,1770113441047,-1000.0,0.00052147,120]
[404407400,1770113441056,-1000.0,0.00052147,120]
[404407402,1770113441064,-579.0,0.00052147,120]
[404407404,1770113441073,-871.57,0.000523,14]
[404407413,1770113441147,-1800.92,0.00052451,120]
[404407415,1770113441156,-423.92861045,0.000528,120]
[404407417,1770113441166,-436.57660389,0.00052805,30]
[404407419,1770113441175,-50527.5,0.000529,120]
[404407421,1770113441184,-1782.91,0.00052959,120]
[404407423,1770113441194,-1260.29222194,0.00053,120]
[404407425,1770113441202,-82561.61436726,0.00053,120]
[404407427,1770113441212,-215.62,0.00053863,120]
[404407429,1770113441221,-76529.00545696,0.00054,2]
[404407431,1770113441230,-500.0,0.00054794,120]
[404407433,1770113441239,-5607.07,0.00054794,120]
[404407435,1770113441248,-500.0,0.00054794,120]
[404407437,1770113441257,-500.0,0.00054794,120]
[404407439,1770113441267,-622.63704835,0.00054794,120]
[404407441,1770113441281,-200.0,0.00054794,120]
[404407443,1770113441290,-344.567604,0.00054794,7]
[404407445,1770113441300,-1685.8,0.00054794,30]
[404407447,1770113441309,-500.0,0.00054794,120]
[404407448,1770113441318,-500.0,0.00054794,120]
[404407450,1770113441327,-500.0,0.00054794,120]
[404407452,1770113441336,-500.0,0.00054794,120]
[404407454,1770113441347,-500.0,0.00054794,120]
[404407456,1770113441356,-500.0,0.00054794,120]
[404407458,1770113441365,-500.0,0.00054794,120]
[404407460,1770113441374,-500.0,0.00054794,120]
[404407462,1770113441383,-500.0,0.00054794,120]
[404407464,1770113441392,-664.41,0.00054794,120]
[404407466,1770113441403,-500.0,0.00054794,120]
[404407468,1770113441412,-780.55,0.00054794,120]
[404407470,1770113441421,-510.58965876,0.00054794,120]
[404407472,1770113441430,-499.3166042,0.00054794,120]
[404407474,1770113441438,-500.0,0.00054794,120]
[404407475,1770113441447,-500.0,0.00054794,120]
[404407477,1770113441456,-386.139226,0.00054794,120]
[404407479,1770113441465,-500.0,0.00054794,120]
[404407481,1770113441473,-400.0,0.00054794,2]
[404407483,1770113441485,-691.1,0.00054794,120]
[404407485,1770113441495,-500.0,0.00054794,120]
[404407487,1770113441506,-500.0,0.00054794,120]
[404407489,1770113441515,-500.0,0.00054794,120]
[404407491,1770113441524,-500.0,0.00054794,120]
[404407493,1770113441534,-1479.53,0.00054794,120]
[404407495,1770113441543,-500.0,0.00054794,120]
[404407497,1770113441552,-500.0,0.00054794,120]
[404407499,1770113441562,-637.38,0.00054794,120]
[404407501,1770113441572,-419.49633129,0.00054794,120]
[404407503,1770113441583,-500.0,0.00054794,120]
[404407505,1770113441591,-755.7,0.00054794,120]
[404407507,1770113441605,-726.04,0.00054794,90]
[404407509,1770113441614,-500.0,0.00054794,7]
[404407511,1770113441624,-500.0,0.00054794,120]
[404407513,1770113441633,-500.0,0.00054794,120]
[404407515,1770113441643,-6331.59,0.00054794,120]
[404407517,1770113441652,-500.0,0.00054794,120]
[404407519,1770113441661,-500.0,0.00054794,120]
[404407521,1770113441671,-941.94,0.00054794,120]
[404407523,1770113441680,-1309.61,0.00054794,120]
[404407525,1770113441689,-151.0,0.00054795,120]
[404407527,1770113441698,-151.0,0.00054795,120]
[404407529,1770113441708,-151.0,0.00054795,120]
[404407531,1770113441717,-151.0,0.00054795,120]
[404407533,1770113441727,-151.0,0.00054795,120]
[404407535,1770113441736,-151.0,0.00054795,120]
[404407537,1770113441745,-151.0,0.00054795,120]
[404407539,1770113441754,-151.0,0.00054795,120]
[404407541,1770113441764,-151.0,0.00054795,120]
[404407543,1770113441777,-151.0,0.00054795,120]
[404407545,1770113441786,-186.151874,0.00054795,120]
[404407547,1770113441794,-151.0,0.00054795,120]
[404407549,1770113441803,-151.0,0.00054795,120]
[404407551,1770113441813,-151.0,0.00054795,120]
[404407553,1770113441822,-151.0,0.00054795,120]
[404407555,1770113441830,-151.0,0.00054795,120]